[Event "Titled Tuesday Blitz April 11 Early 2023"]
[White "Rodriguez Santiago, Jaime"]
[Black "Jaivardhan Raj"]
[WhiteFideId "3100898"]
[BlackFideId "25744437"]
[WhiteElo "2025"]
[BlackElo "1772"]
[Result "1-0"]
[Round "10"]
[TimeControl "180+2"]
[Date "2023.04.11"]
[WhiteClock "0:00:35"]
[BlackClock "0:00:02"]

1. c4 {[%clk 0:03:00]}  e5 {[%clk 0:02:48]} 2. Nc3 {[%clk 0:02:59]}  Nf6 {[%clk 0:02:46]} 3. g3 {[%clk 0:02:59]}  g6 {[%clk 0:02:44]} 4. Bg2 {[%clk 0:02:59]}  Bg7 {[%clk 0:02:45]} 5. e4 {[%clk 0:02:58]}  O-O {[%clk 0:02:45]} 6. Nge2 {[%clk 0:02:58]}  c5 {[%clk 0:02:45]} 7. O-O {[%clk 0:02:58]}  d6 {[%clk 0:02:46]} 8. d3 {[%clk 0:02:58]}  Nc6 {[%clk 0:02:44]} 9. h3 {[%clk 0:02:57]}  Rb8 {[%clk 0:02:42]} 10. Be3 {[%clk 0:02:54]}  a6 {[%clk 0:02:40]} 11. a4 {[%clk 0:02:53]}  Nd7 {[%clk 0:02:35]} 12. Rb1 {[%clk 0:02:45]}  f5 {[%clk 0:02:31]} 13. exf5 {[%clk 0:02:42]}  gxf5 {[%clk 0:02:31]} 14. f4 {[%clk 0:02:39]}  Nd4 {[%clk 0:02:27]} 15. b4 {[%clk 0:02:35]}  b6 {[%clk 0:02:21]} 16. fxe5 {[%clk 0:02:29]}  Nxe5 {[%clk 0:02:11]} 17. Nxd4 {[%clk 0:02:14]}  cxd4 {[%clk 0:02:10]} 18. Bxd4 {[%clk 0:02:15]}  Nf3+ {[%clk 0:02:09]} 19. Qxf3 {[%clk 0:02:15]}  Bxd4+ {[%clk 0:02:08]} 20. Kh2 {[%clk 0:02:14]}  Bxc3 {[%clk 0:02:08]} 21. d4 {[%clk 0:02:11]}  Bd2 {[%clk 0:01:58]} 22. Qd5+ {[%clk 0:01:54]}  Kh8 {[%clk 0:01:54]} 23. Rb2 {[%clk 0:01:39]}  Bh6 {[%clk 0:01:43]} 24. Rbf2 {[%clk 0:01:35]}  Bg7 {[%clk 0:01:37]} 25. Bf3 {[%clk 0:01:21]}  Bb7 {[%clk 0:01:33]} 26. Qe6 {[%clk 0:01:20]}  Bc8 {[%clk 0:01:04]} 27. Qe3 {[%clk 0:01:16]}  Qf6 {[%clk 0:01:02]} 28. Bd5 {[%clk 0:01:08]}  Qxd4 {[%clk 0:00:57]} 29. Qe7 {[%clk 0:01:07]}  Qf6 {[%clk 0:00:50]} 30. Qc7 {[%clk 0:01:03]}  Be6 {[%clk 0:00:41]} 31. Qxd6 {[%clk 0:00:58]}  Bxd5 {[%clk 0:00:39]} 32. Qxd5 {[%clk 0:00:58]}  Rbd8 {[%clk 0:00:18]} 33. Qb7 {[%clk 0:00:55]}  Rd4 {[%clk 0:00:16]} 34. c5 {[%clk 0:00:51]}  bxc5 {[%clk 0:00:15]} 35. bxc5 {[%clk 0:00:52]}  Qe5 {[%clk 0:00:14]} 36. c6 {[%clk 0:00:47]}  Rd3 {[%clk 0:00:13]} 37. Rg2 {[%clk 0:00:46]}  Rb8 {[%clk 0:00:12]} 38. c7 {[%clk 0:00:37]}  Rxb7 {[%clk 0:00:05]} 39. c8=Q+ {[%clk 0:00:37]}  Rd8 {[%clk 0:00:03]} 40. Qxd8+ {[%clk 0:00:35]}  Qe8 {[%clk 0:00:01]} 41. Qxe8+ {[%clk 0:00:35]}  Bf8 {[%clk 0:00:02]} 42. Qxf8# {[%clk 0:00:35]} 1-0


[Site "https://www.chess.com"]

[Event "Titled Tuesday Blitz April 11 Early 2023"]
[White "MANOJ_MISHRA123"]
[Black "micke12a"]
[WhiteElo "2121"]
[BlackElo "2313"]
[Result "0-1"]
[Round "10"]
[TimeControl "180+2"]
[Date "2023.04.11"]
[WhiteClock "0:00:11"]
[BlackClock "0:00:06"]

1. d4 {[%clk 0:02:56]}  Nf6 {[%clk 0:02:59]} 2. Bg5 {[%clk 0:02:54]}  Ne4 {[%clk 0:02:58]} 3. h4 {[%clk 0:02:53]}  h6 {[%clk 0:02:54]} 4. Bf4 {[%clk 0:02:51]}  d5 {[%clk 0:02:54]} 5. e3 {[%clk 0:02:42]}  c6 {[%clk 0:02:52]} 6. Bd3 {[%clk 0:02:36]}  Nf6 {[%clk 0:02:50]} 7. c4 {[%clk 0:02:28]}  e6 {[%clk 0:02:49]} 8. c5 {[%clk 0:02:28]}  b6 {[%clk 0:02:47]} 9. b4 {[%clk 0:02:27]}  a5 {[%clk 0:02:44]} 10. a3 {[%clk 0:02:23]}  axb4 {[%clk 0:02:44]} 11. Bxb8 {[%clk 0:02:23]}  Rxb8 {[%clk 0:02:40]} 12. axb4 {[%clk 0:02:24]}  bxc5 {[%clk 0:02:41]} 13. bxc5 {[%clk 0:02:24]}  Bb7 {[%clk 0:02:38]} 14. Nc3 {[%clk 0:02:07]}  Be7 {[%clk 0:02:36]} 15. Nf3 {[%clk 0:02:07]}  O-O {[%clk 0:02:36]} 16. O-O {[%clk 0:02:01]}  Nd7 {[%clk 0:02:34]} 17. g3 {[%clk 0:01:59]}  e5 {[%clk 0:02:33]} 18. Bc2 {[%clk 0:01:53]}  Bf6 {[%clk 0:02:28]} 19. Ra7 {[%clk 0:01:49]}  e4 {[%clk 0:02:28]} 20. Nd2 {[%clk 0:01:48]}  Nxc5 {[%clk 0:02:28]} 21. Qb1 {[%clk 0:00:53]}  Ba6 {[%clk 0:02:19]} 22. Qa1 {[%clk 0:00:51]}  Bxf1 {[%clk 0:02:19]} 23. dxc5 {[%clk 0:00:48]}  Bb5 {[%clk 0:02:15]} 24. Qa3 {[%clk 0:00:44]}  Re8 {[%clk 0:02:08]} 25. Nxb5 {[%clk 0:00:27]}  Rxb5 {[%clk 0:02:07]} 26. Nb3 {[%clk 0:00:27]}  d4 {[%clk 0:02:03]} 27. exd4 {[%clk 0:00:17]}  e3 {[%clk 0:02:03]} 28. fxe3 {[%clk 0:00:16]}  Rxe3 {[%clk 0:02:03]} 29. Qa2 {[%clk 0:00:16]}  Bxd4 {[%clk 0:02:01]} 30. Nxd4 {[%clk 0:00:16]}  Rxg3+ {[%clk 0:01:12]} 31. Kf2 {[%clk 0:00:16]}  Qxd4+ {[%clk 0:01:07]} 32. Kxg3 {[%clk 0:00:16]}  Qe3+ {[%clk 0:01:07]} 33. Kg2 {[%clk 0:00:15]}  Qe2+ {[%clk 0:01:03]} 34. Kg1 {[%clk 0:00:14]}  Qg4+ {[%clk 0:00:42]} 35. Kf2 {[%clk 0:00:13]}  Qxh4+ {[%clk 0:00:39]} 36. Ke2 {[%clk 0:00:12]}  Qg4+ {[%clk 0:00:33]} 37. Kd2 {[%clk 0:00:12]}  Qf4+ {[%clk 0:00:30]} 38. Kc3 {[%clk 0:00:10]}  Rxc5+ {[%clk 0:00:28]} 39. Kb2 {[%clk 0:00:10]}  Rb5+ {[%clk 0:00:24]} 40. Bb3 {[%clk 0:00:09]}  Qf2+ {[%clk 0:00:20]} 41. Kc3 {[%clk 0:00:09]}  Rc5+ {[%clk 0:00:14]} 42. Kb4 {[%clk 0:00:07]}  Qd4+ {[%clk 0:00:13]} 43. Bc4 {[%clk 0:00:07]}  Rxc4+ {[%clk 0:00:11]} 44. Qxc4 {[%clk 0:00:06]}  Qxa7 {[%clk 0:00:11]} 45. Qxc6 {[%clk 0:00:07]}  Qe7+ {[%clk 0:00:11]} 46. Kc3 {[%clk 0:00:06]}  Qf6+ {[%clk 0:00:11]} 47. Qxf6 {[%clk 0:00:05]}  gxf6 {[%clk 0:00:12]} 48. Kd4 {[%clk 0:00:06]}  Kg7 {[%clk 0:00:13]} 49. Ke4 {[%clk 0:00:06]}  Kg6 {[%clk 0:00:14]} 50. Kf4 {[%clk 0:00:06]}  f5 {[%clk 0:00:14]} 51. Ke5 {[%clk 0:00:05]}  Kg5 {[%clk 0:00:15]} 52. Kd6 {[%clk 0:00:05]}  f4 {[%clk 0:00:16]} 53. Ke7 {[%clk 0:00:06]}  f5 {[%clk 0:00:17]} 54. Kf7 {[%clk 0:00:07]}  f3 {[%clk 0:00:17]} 55. Kg7 {[%clk 0:00:07]}  h5 {[%clk 0:00:18]} 56. Kh7 {[%clk 0:00:08]}  h4 {[%clk 0:00:19]} 57. Kg7 {[%clk 0:00:08]}  h3 {[%clk 0:00:20]} 58. Kf7 {[%clk 0:00:09]}  f2 {[%clk 0:00:21]} 59. Kg7 {[%clk 0:00:10]}  f1=Q {[%clk 0:00:22]} 60. Kh7 {[%clk 0:00:11]}  h2 {[%clk 0:00:22]} 61. Kg7 {[%clk 0:00:12]}  h1=Q {[%clk 0:00:22]} 62. Kf7 {[%clk 0:00:13]}  f4 {[%clk 0:00:23]} 63. Kg7 {[%clk 0:00:14]}  Qd3 {[%clk 0:00:23]} 64. Kf7 {[%clk 0:00:14]}  f3 {[%clk 0:00:22]} 65. Kg7 {[%clk 0:00:15]}  f2 {[%clk 0:00:22]} 66. Kf7 {[%clk 0:00:16]}  f1=Q+ {[%clk 0:00:22]} 67. Kg7 {[%clk 0:00:17]}  Qff3 {[%clk 0:00:20]} 68. Kg8 {[%clk 0:00:14]}  Qhg2 {[%clk 0:00:20]} 69. Kg7 {[%clk 0:00:14]}  Qge2 {[%clk 0:00:17]} 70. Kh8 {[%clk 0:00:12]}  Qe7 {[%clk 0:00:14]} 71. Kg8 {[%clk 0:00:12]}  Qdd7 {[%clk 0:00:13]} 72. Kh8 {[%clk 0:00:12]}  Qfb7 {[%clk 0:00:07]} 73. Kg8 {[%clk 0:00:11]}  Qbc7 {[%clk 0:00:06]} 74. Kh8 {[%clk 0:00:11]}  Qcd8# {[%clk 0:00:06]} 0-1


[Site "https://www.chess.com"]

[Event "Titled Tuesday Blitz April 11 Early 2023"]
[White "Lenaerts, Lennert"]
[Black "Qashashvili, Alexandre"]
[WhiteFideId "211435"]
[BlackFideId "13600842"]
[WhiteElo "2334"]
[BlackElo "2405"]
[Result "1-0"]
[Round "10"]
[TimeControl "180+2"]
[Date "2023.04.11"]
[WhiteClock "0:01:28"]
[BlackClock "0:00:01"]

1. d4 {[%clk 0:02:51]}  c6 {[%clk 0:02:59]} 2. c4 {[%clk 0:02:51]}  d5 {[%clk 0:02:59]} 3. cxd5 {[%clk 0:02:52]}  cxd5 {[%clk 0:02:58]} 4. Bf4 {[%clk 0:02:53]}  Nc6 {[%clk 0:02:57]} 5. e3 {[%clk 0:02:53]}  Nf6 {[%clk 0:02:52]} 6. Nc3 {[%clk 0:02:54]}  Qb6 {[%clk 0:02:51]} 7. a3 {[%clk 0:02:52]}  Bf5 {[%clk 0:02:50]} 8. Qd2 {[%clk 0:02:43]}  e6 {[%clk 0:02:49]} 9. Nf3 {[%clk 0:02:41]}  Be7 {[%clk 0:02:47]} 10. Be2 {[%clk 0:02:40]}  O-O {[%clk 0:02:47]} 11. Na4 {[%clk 0:02:40]}  Qa5 {[%clk 0:02:43]} 12. Qxa5 {[%clk 0:02:39]}  Nxa5 {[%clk 0:02:40]} 13. b4 {[%clk 0:02:40]}  Nc6 {[%clk 0:02:33]} 14. O-O {[%clk 0:02:37]}  Ne4 {[%clk 0:02:29]} 15. Rfc1 {[%clk 0:02:36]}  a6 {[%clk 0:02:28]} 16. Nc5 {[%clk 0:02:35]}  Bxc5 {[%clk 0:02:20]} 17. bxc5 {[%clk 0:02:36]}  Na5 {[%clk 0:02:16]} 18. Ra2 {[%clk 0:02:28]}  Rfc8 {[%clk 0:02:08]} 19. Rb2 {[%clk 0:02:25]}  h6 {[%clk 0:02:05]} 20. h3 {[%clk 0:02:22]}  f6 {[%clk 0:02:04]} 21. Bd3 {[%clk 0:02:21]}  Rc6 {[%clk 0:01:47]} 22. Ne1 {[%clk 0:02:16]}  Rac8 {[%clk 0:01:38]} 23. Rcb1 {[%clk 0:02:16]}  Nc3 {[%clk 0:01:29]} 24. Bxf5 {[%clk 0:02:09]}  exf5 {[%clk 0:01:30]} 25. Rc1 {[%clk 0:02:08]}  Na4 {[%clk 0:01:19]} 26. Rb4 {[%clk 0:02:06]}  b5 {[%clk 0:01:16]} 27. Nd3 {[%clk 0:02:00]}  Nc4 {[%clk 0:01:14]} 28. Rb3 {[%clk 0:02:00]}  Nd2 {[%clk 0:01:09]} 29. Rb4 {[%clk 0:01:53]}  Nc4 {[%clk 0:00:52]} 30. Rbb1 {[%clk 0:01:51]}  Nd2 {[%clk 0:00:50]} 31. Nb4 {[%clk 0:01:47]}  Nxb1 {[%clk 0:00:47]} 32. Rxb1 {[%clk 0:01:48]}  Nc3 {[%clk 0:00:34]} 33. Rb2 {[%clk 0:01:48]}  Re6 {[%clk 0:00:32]} 34. Rc2 {[%clk 0:01:47]}  Nb1 {[%clk 0:00:29]} 35. Nxd5 {[%clk 0:01:43]}  Nxa3 {[%clk 0:00:28]} 36. Ra2 {[%clk 0:01:43]}  Nc4 {[%clk 0:00:27]} 37. Nc7 {[%clk 0:01:33]}  Rc6 {[%clk 0:00:19]} 38. Nxa6 {[%clk 0:01:33]}  Ra8 {[%clk 0:00:17]} 39. Nb4 {[%clk 0:01:33]}  Rxa2 {[%clk 0:00:15]} 40. Nxa2 {[%clk 0:01:33]}  Ra6 {[%clk 0:00:15]} 41. Nb4 {[%clk 0:01:31]}  Ra4 {[%clk 0:00:15]} 42. Nd5 {[%clk 0:01:31]}  b4 {[%clk 0:00:14]} 43. c6 {[%clk 0:01:32]}  b3 {[%clk 0:00:13]} 44. c7 {[%clk 0:01:31]}  Ra8 {[%clk 0:00:11]} 45. Kf1 {[%clk 0:01:31]}  b2 {[%clk 0:00:09]} 46. Nc3 {[%clk 0:01:31]}  Nd2+ {[%clk 0:00:09]} 47. Ke2 {[%clk 0:01:31]}  b1=Q {[%clk 0:00:09]} 48. Nxb1 {[%clk 0:01:32]}  Nxb1 {[%clk 0:00:10]} 49. Kd3 {[%clk 0:01:33]}  Na3 {[%clk 0:00:09]} 50. d5 {[%clk 0:01:33]}  Nb5 {[%clk 0:00:09]} 51. Kc4 {[%clk 0:01:33]}  Nxc7 {[%clk 0:00:05]} 52. Bxc7 {[%clk 0:01:33]}  Kf7 {[%clk 0:00:04]} 53. Kc5 {[%clk 0:01:32]}  Ra2 {[%clk 0:00:03]} 54. Bg3 {[%clk 0:01:28]}  Rc2+ {[%clk 0:00:01]} 55. Kd6 {[%clk 0:01:28]}  Rd2 {[%clk 0:00:01]} 56. h4 {[%clk 0:01:28]} 1-0


[Site "https://www.chess.com"]

[Event "Titled Tuesday Blitz April 11 Early 2023"]
[White "Derichs, Roger"]
[Black "Necula, Iulian"]
[WhiteFideId "4630076"]
[BlackFideId "1232380"]
[WhiteElo "2362"]
[BlackElo "1790"]
[Result "1-0"]
[Round "10"]
[TimeControl "180+2"]
[Date "2023.04.11"]
[WhiteClock "0:00:04"]
[BlackClock "0:00:02"]

1. d4 {[%clk 0:03:00]}  d6 {[%clk 0:03:00]} 2. c4 {[%clk 0:03:01]}  f5 {[%clk 0:03:01]} 3. Nc3 {[%clk 0:02:57]}  Nf6 {[%clk 0:03:01]} 4. g3 {[%clk 0:02:57]}  g6 {[%clk 0:03:01]} 5. Bg2 {[%clk 0:02:58]}  Bg7 {[%clk 0:03:02]} 6. Nf3 {[%clk 0:02:58]}  O-O {[%clk 0:03:03]} 7. O-O {[%clk 0:02:59]}  Qe8 {[%clk 0:03:03]} 8. Re1 {[%clk 0:02:54]}  e5 {[%clk 0:02:56]} 9. e4 {[%clk 0:02:53]}  f4 {[%clk 0:02:56]} 10. dxe5 {[%clk 0:02:49]}  dxe5 {[%clk 0:02:55]} 11. Nd5 {[%clk 0:02:49]}  Na6 {[%clk 0:02:49]} 12. gxf4 {[%clk 0:02:40]}  exf4 {[%clk 0:02:21]} 13. Bxf4 {[%clk 0:02:37]}  c6 {[%clk 0:01:51]} 14. Nxf6+ {[%clk 0:02:30]}  Bxf6 {[%clk 0:01:50]} 15. Bh6 {[%clk 0:02:30]}  Bg7 {[%clk 0:01:25]} 16. Bxg7 {[%clk 0:02:30]}  Kxg7 {[%clk 0:01:26]} 17. Qd4+ {[%clk 0:02:29]}  Kg8 {[%clk 0:01:23]} 18. c5 {[%clk 0:02:26]}  h6 {[%clk 0:01:06]} 19. b4 {[%clk 0:02:20]}  Bg4 {[%clk 0:01:04]} 20. Nd2 {[%clk 0:02:17]}  Rd8 {[%clk 0:01:02]} 21. Qc3 {[%clk 0:02:16]}  Qf7 {[%clk 0:00:58]} 22. f3 {[%clk 0:02:04]}  Be6 {[%clk 0:00:57]} 23. Bf1 {[%clk 0:02:02]}  Nc7 {[%clk 0:00:55]} 24. Re3 {[%clk 0:02:00]}  Nb5 {[%clk 0:00:54]} 25. Bxb5 {[%clk 0:01:59]}  cxb5 {[%clk 0:00:55]} 26. a3 {[%clk 0:01:39]}  Qf4 {[%clk 0:00:53]} 27. Nf1 {[%clk 0:01:30]}  Bc4 {[%clk 0:00:48]} 28. Rae1 {[%clk 0:01:06]}  h5 {[%clk 0:00:48]} 29. Ng3 {[%clk 0:00:48]}  h4 {[%clk 0:00:46]} 30. Ne2 {[%clk 0:00:49]}  Qg5+ {[%clk 0:00:42]} 31. Kh1 {[%clk 0:00:49]}  Bxe2 {[%clk 0:00:32]} 32. R3xe2 {[%clk 0:00:45]}  Rf4 {[%clk 0:00:22]} 33. Rg1 {[%clk 0:00:44]}  Qh5 {[%clk 0:00:20]} 34. Reg2 {[%clk 0:00:37]}  Qxf3 {[%clk 0:00:10]} 35. Qxf3 {[%clk 0:00:33]}  Rxf3 {[%clk 0:00:11]} 36. Rxg6+ {[%clk 0:00:34]}  Kf7 {[%clk 0:00:11]} 37. Rd6 {[%clk 0:00:20]}  Re8 {[%clk 0:00:08]} 38. Re1 {[%clk 0:00:15]}  Rxa3 {[%clk 0:00:06]} 39. e5 {[%clk 0:00:14]}  Rb3 {[%clk 0:00:05]} 40. e6+ {[%clk 0:00:09]}  Ke7 {[%clk 0:00:03]} 41. Rd7+ {[%clk 0:00:09]}  Kf6 {[%clk 0:00:03]} 42. Rf7+ {[%clk 0:00:08]}  Kg6 {[%clk 0:00:03]} 43. Rg1+ {[%clk 0:00:06]}  Kh6 {[%clk 0:00:02]} 44. Rf6+ {[%clk 0:00:04]}  Kh7 {[%clk 0:00:02]} 45. Rf7+ {[%clk 0:00:04]}  Kh6 {[%clk 0:00:02]} 46. e7 {[%clk 0:00:04]} 1-0


[Site "https://www.chess.com"]

[Event "Titled Tuesday Blitz April 11 Early 2023"]
[White "Golubev, Mikhail"]
[Black "Kiseleva, Arina"]
[WhiteFideId "14100983"]
[BlackFideId "4164989"]
[WhiteElo "2374"]
[BlackElo "1708"]
[Result "1-0"]
[Round "10"]
[TimeControl "180+2"]
[Date "2023.04.11"]
[WhiteClock "0:00:57"]
[BlackClock "0:00:02"]

1. g3 {[%clk 0:03:00]}  d5 {[%clk 0:02:59]} 2. Bg2 {[%clk 0:03:00]}  c6 {[%clk 0:02:59]} 3. Nf3 {[%clk 0:03:00]}  Nf6 {[%clk 0:03:00]} 4. O-O {[%clk 0:03:00]}  Bg4 {[%clk 0:02:59]} 5. d3 {[%clk 0:02:57]}  Nbd7 {[%clk 0:02:58]} 6. Qe1 {[%clk 0:02:55]}  e6 {[%clk 0:02:57]} 7. e4 {[%clk 0:02:54]}  Bxf3 {[%clk 0:02:35]} 8. Bxf3 {[%clk 0:02:54]}  Qc7 {[%clk 0:02:25]} 9. Nc3 {[%clk 0:02:45]}  d4 {[%clk 0:02:13]} 10. Ne2 {[%clk 0:02:42]}  e5 {[%clk 0:02:12]} 11. Bg2 {[%clk 0:02:42]}  c5 {[%clk 0:02:05]} 12. f4 {[%clk 0:02:26]}  Bd6 {[%clk 0:01:39]} 13. fxe5 {[%clk 0:02:19]}  Nxe5 {[%clk 0:01:38]} 14. Rxf6 {[%clk 0:02:14]}  gxf6 {[%clk 0:01:37]} 15. Nf4 {[%clk 0:02:14]}  O-O-O {[%clk 0:01:17]} 16. Nd5 {[%clk 0:02:05]}  Qc6 {[%clk 0:01:16]} 17. Qf1 {[%clk 0:01:50]}  h5 {[%clk 0:00:59]} 18. Qxf6 {[%clk 0:01:47]}  h4 {[%clk 0:00:56]} 19. Bf4 {[%clk 0:01:37]}  Ng6 {[%clk 0:00:34]} 20. Qxf7 {[%clk 0:01:17]}  Bxf4 {[%clk 0:00:24]} 21. gxf4 {[%clk 0:01:16]}  Rhf8 {[%clk 0:00:20]} 22. Qxg6 {[%clk 0:01:12]}  Qxg6 {[%clk 0:00:18]} 23. Ne7+ {[%clk 0:01:12]}  Kc7 {[%clk 0:00:17]} 24. Nxg6 {[%clk 0:01:13]}  Rg8 {[%clk 0:00:17]} 25. f5 {[%clk 0:01:13]}  Rg7 {[%clk 0:00:13]} 26. Rf1 {[%clk 0:01:11]}  Rdg8 {[%clk 0:00:12]} 27. Rf4 {[%clk 0:01:10]}  h3 {[%clk 0:00:11]} 28. Bxh3 {[%clk 0:01:09]}  Kd6 {[%clk 0:00:09]} 29. Bg2 {[%clk 0:01:08]}  b5 {[%clk 0:00:09]} 30. e5+ {[%clk 0:01:07]}  Kd7 {[%clk 0:00:09]} 31. Be4 {[%clk 0:01:07]}  a5 {[%clk 0:00:06]} 32. h4 {[%clk 0:01:05]}  a4 {[%clk 0:00:04]} 33. f6 {[%clk 0:01:02]}  Rf7 {[%clk 0:00:02]} 34. h5 {[%clk 0:00:57]} 1-0


[Site "https://www.chess.com"]

[Event "Titled Tuesday Blitz April 11 Early 2023"]
[White "Einarsson, Halldor Gretar"]
[Black "Cupid, Kevin"]
[WhiteFideId "2300150"]
[BlackFideId "7700512"]
[WhiteElo "2142"]
[BlackElo "2124"]
[Result "0-1"]
[Round "10"]
[TimeControl "180+2"]
[Date "2023.04.11"]
[WhiteClock "0:00:30"]
[BlackClock "0:01:24"]

1. d4 {[%clk 0:03:00]}  Nf6 {[%clk 0:02:57]} 2. c4 {[%clk 0:03:00]}  e6 {[%clk 0:02:57]} 3. g3 {[%clk 0:02:59]}  Bb4+ {[%clk 0:02:57]} 4. Bd2 {[%clk 0:02:58]}  Be7 {[%clk 0:02:57]} 5. Nf3 {[%clk 0:02:53]}  O-O {[%clk 0:02:55]} 6. Nc3 {[%clk 0:02:53]}  d6 {[%clk 0:02:55]} 7. Bg2 {[%clk 0:02:46]}  Nbd7 {[%clk 0:02:53]} 8. O-O {[%clk 0:02:41]}  Re8 {[%clk 0:02:50]} 9. Qc2 {[%clk 0:02:35]}  c5 {[%clk 0:02:44]} 10. e3 {[%clk 0:02:24]}  a6 {[%clk 0:02:39]} 11. Rad1 {[%clk 0:02:22]}  Qc7 {[%clk 0:02:38]} 12. b3 {[%clk 0:02:20]}  Rb8 {[%clk 0:02:38]} 13. h4 {[%clk 0:02:16]}  b5 {[%clk 0:02:35]} 14. cxb5 {[%clk 0:02:14]}  axb5 {[%clk 0:02:36]} 15. a4 {[%clk 0:02:10]}  bxa4 {[%clk 0:02:22]} 16. bxa4 {[%clk 0:02:05]}  Bb7 {[%clk 0:02:22]} 17. Rb1 {[%clk 0:01:29]}  cxd4 {[%clk 0:02:13]} 18. Nxd4 {[%clk 0:01:24]}  Bxg2 {[%clk 0:02:12]} 19. Kxg2 {[%clk 0:01:23]}  Rxb1 {[%clk 0:02:12]} 20. Rxb1 {[%clk 0:01:22]}  Rc8 {[%clk 0:02:08]} 21. Qd1 {[%clk 0:01:10]}  Qc4 {[%clk 0:02:05]} 22. Ncb5 {[%clk 0:01:03]}  Ra8 {[%clk 0:01:43]} 23. a5 {[%clk 0:01:02]}  Nc5 {[%clk 0:01:39]} 24. f3 {[%clk 0:00:54]}  Nd5 {[%clk 0:01:35]} 25. Qe2 {[%clk 0:00:42]}  Qa2 {[%clk 0:01:26]} 26. Qd1 {[%clk 0:00:30]}  Nxe3+ {[%clk 0:01:24]} 0-1


[Site "https://www.chess.com"]

[Event "Titled Tuesday Blitz April 11 Early 2023"]
[White "Matveeva, Olga"]
[Black "rionelG"]
[WhiteFideId "24107018"]
[WhiteElo "2056"]
[BlackElo "2171"]
[Result "0-1"]
[Round "10"]
[TimeControl "180+2"]
[Date "2023.04.11"]
[WhiteClock "0:00:01"]
[BlackClock "0:00:26"]

1. d4 {[%clk 0:02:59]}  Nf6 {[%clk 0:02:59]} 2. c4 {[%clk 0:02:58]}  g6 {[%clk 0:02:59]} 3. g3 {[%clk 0:02:57]}  Bg7 {[%clk 0:03:00]} 4. Bg2 {[%clk 0:02:57]}  O-O {[%clk 0:03:01]} 5. Nc3 {[%clk 0:02:58]}  d6 {[%clk 0:03:01]} 6. Nf3 {[%clk 0:02:58]}  Nc6 {[%clk 0:03:01]} 7. O-O {[%clk 0:02:58]}  a6 {[%clk 0:03:01]} 8. Qd3 {[%clk 0:02:50]}  e5 {[%clk 0:02:47]} 9. dxe5 {[%clk 0:02:47]}  Nxe5 {[%clk 0:02:45]} 10. Nxe5 {[%clk 0:02:44]}  dxe5 {[%clk 0:02:46]} 11. Qxd8 {[%clk 0:02:43]}  Rxd8 {[%clk 0:02:45]} 12. Bg5 {[%clk 0:02:43]}  Re8 {[%clk 0:02:19]} 13. Rfd1 {[%clk 0:02:39]}  c6 {[%clk 0:02:00]} 14. Rd6 {[%clk 0:02:35]}  Nd7 {[%clk 0:01:54]} 15. Rad1 {[%clk 0:02:32]}  h6 {[%clk 0:01:50]} 16. Be3 {[%clk 0:02:24]}  Nf8 {[%clk 0:01:49]} 17. Na4 {[%clk 0:02:08]}  Bf5 {[%clk 0:01:43]} 18. Nb6 {[%clk 0:02:02]}  Rab8 {[%clk 0:01:42]} 19. b3 {[%clk 0:01:51]}  Ne6 {[%clk 0:01:40]} 20. Nd7 {[%clk 0:01:42]}  Rbc8 {[%clk 0:01:28]} 21. Kf1 {[%clk 0:01:27]}  Nd4 {[%clk 0:01:27]} 22. h3 {[%clk 0:01:11]}  Rcd8 {[%clk 0:01:09]} 23. Nf6+ {[%clk 0:00:52]}  Bxf6 {[%clk 0:01:08]} 24. Rxf6 {[%clk 0:00:53]}  Kg7 {[%clk 0:01:06]} 25. Rxf5 {[%clk 0:00:30]}  Nxf5 {[%clk 0:00:58]} 26. Ke1 {[%clk 0:00:16]}  Nxe3 {[%clk 0:00:55]} 27. fxe3 {[%clk 0:00:16]}  f5 {[%clk 0:00:50]} 28. e4 {[%clk 0:00:10]}  f4 {[%clk 0:00:49]} 29. gxf4 {[%clk 0:00:08]}  exf4 {[%clk 0:00:50]} 30. Bf3 {[%clk 0:00:08]}  Kf6 {[%clk 0:00:49]} 31. Rd3 {[%clk 0:00:05]}  Ke5 {[%clk 0:00:46]} 32. Kd2 {[%clk 0:00:05]}  Rxd3+ {[%clk 0:00:36]} 33. exd3 {[%clk 0:00:04]}  Kd4 {[%clk 0:00:37]} 34. Bg4 {[%clk 0:00:04]}  a5 {[%clk 0:00:34]} 35. Bf3 {[%clk 0:00:03]}  Re5 {[%clk 0:00:33]} 36. Bg4 {[%clk 0:00:03]}  h5 {[%clk 0:00:32]} 37. Bc8 {[%clk 0:00:01]}  b6 {[%clk 0:00:28]} 38. Bd7 {[%clk 0:00:01]}  c5 {[%clk 0:00:27]} 39. Bc6 {[%clk 0:00:01]}  Rg5 {[%clk 0:00:26]} 0-1


[Site "https://www.chess.com"]

[Event "Titled Tuesday Blitz April 11 Early 2023"]
[White "Ambrogi, Agustin"]
[Black "Munro, Allan"]
[WhiteFideId "170933"]
[BlackFideId "7700245"]
[WhiteElo "2214"]
[BlackElo "2084"]
[Result "1-0"]
[Round "10"]
[TimeControl "180+2"]
[Date "2023.04.11"]
[WhiteClock "0:02:14"]
[BlackClock "0:00:44"]

1. e4 {[%clk 0:03:00]}  e5 {[%clk 0:02:59]} 2. Nf3 {[%clk 0:03:00]}  Nc6 {[%clk 0:02:59]} 3. Bc4 {[%clk 0:03:01]}  Nf6 {[%clk 0:03:00]} 4. Ng5 {[%clk 0:03:01]}  d5 {[%clk 0:02:59]} 5. exd5 {[%clk 0:03:02]}  Na5 {[%clk 0:03:00]} 6. Bb5+ {[%clk 0:03:02]}  c6 {[%clk 0:03:00]} 7. dxc6 {[%clk 0:03:03]}  bxc6 {[%clk 0:03:01]} 8. Qf3 {[%clk 0:03:04]}  h6 {[%clk 0:02:59]} 9. Ne4 {[%clk 0:03:04]}  cxb5 {[%clk 0:02:58]} 10. Nxf6+ {[%clk 0:03:03]}  gxf6 {[%clk 0:02:59]} 11. Qxa8 {[%clk 0:03:03]}  Qd7 {[%clk 0:03:00]} 12. Qf3 {[%clk 0:03:03]}  Rg8 {[%clk 0:02:58]} 13. Rg1 {[%clk 0:02:55]}  Bc5 {[%clk 0:02:52]} 14. d3 {[%clk 0:02:50]}  Bb7 {[%clk 0:02:23]} 15. Qxf6 {[%clk 0:02:45]}  Rg6 {[%clk 0:02:17]} 16. Qh8+ {[%clk 0:02:44]}  Ke7 {[%clk 0:02:18]} 17. Nc3 {[%clk 0:02:41]}  Qf5 {[%clk 0:01:44]} 18. Be3 {[%clk 0:02:38]}  Bxe3 {[%clk 0:01:35]} 19. fxe3 {[%clk 0:02:39]}  b4 {[%clk 0:01:16]} 20. Ne4 {[%clk 0:02:34]}  Bxe4 {[%clk 0:01:13]} 21. dxe4 {[%clk 0:02:34]}  Qg5 {[%clk 0:01:11]} 22. O-O-O {[%clk 0:02:33]}  Rg8 {[%clk 0:00:58]} 23. Qh7 {[%clk 0:02:22]}  Rg6 {[%clk 0:00:56]} 24. Rgf1 {[%clk 0:02:18]}  Rf6 {[%clk 0:00:43]} 25. Rxf6 {[%clk 0:02:17]}  Qxf6 {[%clk 0:00:44]} 26. Qf5 {[%clk 0:02:16]}  Qxf5 {[%clk 0:00:43]} 27. exf5 {[%clk 0:02:16]}  Nc4 {[%clk 0:00:44]} 28. e4 {[%clk 0:02:14]} 1-0


[Site "https://www.chess.com"]